fUST/lending_fUST_20240128
["ID","MTS","AMOUNT","RATE_DAILY","PERIOD"]
[312907727,1706454641075,-500.0,0.00021917,2]
[312907728,1706454641084,-500.0,0.00021917,2]
[312907729,1706454641097,-624.72253014,0.00021917,2]
[312907730,1706454641107,-500.0,0.00021917,2]
[312907731,1706454641116,-500.0,0.00021917,2]
[312907732,1706454641125,-500.0,0.00021917,2]
[312907733,1706454641134,-3837.4,0.00021917,2]
[312907734,1706454641143,-500.0,0.00021917,2]
[312907735,1706454641153,-511.78379089,0.00021917,2]
[312907736,1706454641163,-2383.88,0.00021917,2]
[312907737,1706454641174,-500.0,0.00021917,2]
[312907738,1706454641184,-153.33165401,0.00021917,2]
[312907739,1706454641193,-500.0,0.00021917,2]
[312907740,1706454641203,-500.0,0.00021917,2]
[312907741,1706454641213,-981.65,0.00021917,2]
[312907742,1706454641222,-500.0,0.00021917,2]
[312907743,1706454641231,-503.02,0.00021917,2]
[312907744,1706454641240,-2484.13,0.00021917,2]
[312907745,1706454641249,-500.0,0.00021917,2]
[312907746,1706454641257,-527.14,0.00021917,2]
[312907747,1706454641266,-500.0,0.00021917,2]
[312907748,1706454641275,-25598.93,0.00021917,2]
[312907749,1706454641284,-500.0,0.00021917,2]
[312907750,1706454641293,-500.0,0.00021917,2]
[312907751,1706454641302,-4590.51,0.00021917,2]
[312907752,1706454641311,-500.0,0.00021917,2]
[312907753,1706454641320,-500.0,0.00021917,2]
[312907754,1706454641329,-13379.08,0.00021917,2]
[312907755,1706454641337,-500.0,0.00021917,2]
[312907756,1706454641346,-3142.84,0.00021917,2]
[312907757,1706454641355,-1390.76,0.00021917,2]
[312907758,1706454641364,-4034.25,0.00021917,2]
[312907759,1706454641373,-743.92,0.00021917,2]
[312907760,1706454641382,-1060.82,0.00021917,2]
[312907761,1706454641391,-1000.0,0.00021917,2]
[312907762,1706454641400,-507.11,0.00021917,2]
[312907763,1706454641409,-500.0,0.00021917,2]
[312907764,1706454641418,-500.0,0.00021917,2]
[312907765,1706454641427,-500.0,0.00021917,2]
[312907766,1706454641435,-270.96680179,0.00021917,2]
[312907767,1706454641444,-43174.06,0.00021917,2]
[312907768,1706454641453,-500.0,0.00021917,2]
[312907769,1706454641529,-500.0,0.00021917,2]
[312907770,1706454641538,-2299.17,0.00021917,2]
[312907771,1706454641547,-656.05,0.00021917,2]
[312907772,1706454641556,-753.94,0.00021917,2]
[312907773,1706454641566,-500.0,0.00021917,2]
[312907774,1706454641575,-2107.89,0.00021917,2]
[312907776,1706454641584,-500.0,0.00021917,2]
[312907777,1706454641594,-309.87023148,0.00021917,2]
[312907778,1706454641603,-510.194983,0.00021917,2]
[312907780,1706454641612,-500.0,0.00021917,2]
[312907781,1706454641622,-11192.59,0.00021917,2]
[312907783,1706454641630,-500.0,0.00021917,2]
[312907784,1706454641640,-500.0,0.00021917,2]
[312907785,1706454641649,-11676.03,0.00021917,2]
[312907787,1706454641658,-17321.76,0.00021917,2]
[312907788,1706454641668,-38481.01,0.00021917,2]
[312907790,1706454641677,-500.0,0.00021917,2]
[312907791,1706454641686,-16516.83,0.00021917,2]
[312907792,1706454641696,-906.05,0.00021917,2]
[312907794,1706454641706,-166.666666,0.00021918,2]
[312907795,1706454641715,-685.95442465,0.00021918,2]
[312907797,1706454641725,-21690.99033113,0.00021965,2]
[312907798,1706454641733,-293.76675718,0.00022,4]
[312907799,1706454641743,-2036.5412467,0.00022,2]
[312907801,1706454641752,-3972.88161015,0.00022,2]
[312907802,1706454641761,-426.44750157,0.00022,2]
[312907803,1706454641770,-345.79805222,0.00022091,2]
[312907805,1706454641779,-309.96306067,0.00022187,2]
[312907806,1706454641789,-561.60154591,0.00022187,2]
[312907807,1706454641797,-243.1148142,0.00022187,2]
[312907809,1706454641806,-2255.13622763,0.00022187,2]
[312907810,1706454641815,-246.85415565,0.00022187,2]
[312907812,1706454641825,-155.19377045,0.00022187,2]
[312907813,1706454641834,-155.18693013,0.00022187,2]
[312907814,1706454641843,-1579.29620873,0.00022188,2]
[312907815,1706454641852,-155.02325349,0.00022189,2]
[312907817,1706454641861,-181.87969311,0.00022189,2]
[312907818,1706454641870,-179.39472306,0.00022189,2]
[312907819,1706454641878,-2070.34908389,0.00022189,2]
[312907821,1706454641888,-6109.73711025,0.00022189,2]
[312907822,1706454641897,-500.0,0.00022191,2]
[312907823,1706454641906,-500.0,0.00022191,2]
[312907825,1706454641917,-2066.67,0.00022191,2]
[312907826,1706454641927,-500.0,0.00022191,2]
[312907828,1706454641936,-500.0,0.00022191,2]
[312907829,1706454641946,-500.0,0.00022191,2]
[312907830,1706454641955,-1132.6,0.00022191,2]
[312907832,1706454641964,-1113.49,0.00022191,2]
[312907833,1706454641973,-500.0,0.00022191,2]
[312907834,1706454641983,-500.0,0.00022191,2]
[312907836,1706454641991,-500.0,0.00022191,2]
[312907837,1706454642000,-500.0,0.00022191,2]
[312907839,1706454642010,-500.0,0.00022191,2]
[312907840,1706454642020,-500.0,0.00022191,2]
[312907841,1706454642029,-508.83780209,0.00022191,2]
[312907843,1706454642039,-1034.67,0.00022191,2]
[312907844,1706454642048,-1312.35,0.00022191,2]
[312907846,1706454642058,-1825.22,0.00022191,2]
[312907847,1706454642067,-500.0,0.00022191,2]
[312907848,1706454642076,-500.0,0.00022191,2]
[312907850,1706454642085,-614.33097546,0.00022191,2]
[312907851,1706454642095,-500.0,0.00022191,2]
[312907853,1706454642106,-500.0,0.00022191,2]
[312907854,1706454642115,-500.0,0.00022191,2]
[312907855,1706454642124,-500.0,0.00022191,2]
[312907857,1706454642134,-500.0,0.00022191,2]
[312907858,1706454642143,-500.0,0.00022191,2]
[312907860,1706454642153,-500.0,0.00022191,2]
[312907861,1706454642163,-500.0,0.00022191,2]
[312907862,1706454642172,-500.0,0.00022191,2]
[312907863,1706454642183,-500.0,0.00022191,2]
[312907865,1706454642193,-500.0,0.00022191,2]
[312907866,1706454642202,-386.2927909,0.00022191,2]
[312907868,1706454642211,-500.0,0.00022191,2]
[312907869,1706454642220,-915.71,0.00022191,2]
[312907870,1706454642229,-500.0,0.00022191,2]
[312907872,1706454642238,-1694.99,0.00022191,2]
[312907873,1706454642248,-498.94641593,0.00022191,2]
[312907874,1706454642256,-500.0,0.00022191,2]
[312907876,1706454642266,-904.35,0.00022191,2]
[312907877,1706454642275,-295.09203555,0.00022191,2]
[312907878,1706454642284,-513.19830853,0.00022191,2]
[312907880,1706454642294,-500.0,0.00022191,2]
[312907881,1706454642303,-500.0,0.00022191,2]
[312907883,1706454642314,-500.0,0.00022191,2]
[312907884,1706454642323,-5299.02,0.00022191,2]
[312907885,1706454642334,-500.0,0.00022191,2]
[312907887,1706454642344,-501.09,0.00022191,2]
[312907888,1706454642355,-500.0,0.00022191,2]
[312907890,1706454642366,-1757.48,0.00022191,2]
[312907891,1706454642376,-319.81136122,0.00022191,2]
[312907892,1706454642386,-507.68,0.00022191,2]
[312907894,1706454642396,-304.45262867,0.00022191,2]
[312907895,1706454642406,-500.0,0.00022191,2]
[312907896,1706454642418,-500.0,0.00022191,2]
[312907898,1706454642427,-500.0,0.00022191,2]
[312907899,1706454642438,-694.71,0.00022191,2]
[312907901,1706454642448,-500.0,0.00022191,2]
[312907902,1706454642458,-522.06003945,0.00022191,2]
[312907903,1706454642467,-500.0,0.00022191,2]
[312907905,1706454642476,-500.0,0.00022191,2]
[312907906,1706454642485,-500.0,0.00022191,2]
[312907908,1706454642494,-818.16,0.00022191,2]
[312907909,1706454642503,-500.0,0.00022191,2]
[312907910,1706454642512,-557.08,0.00022191,2]
[312907912,1706454642521,-500.0,0.00022191,2]
[312907913,1706454642529,-500.0,0.00022191,2]
[312907914,1706454642539,-500.0,0.00022191,2]
[312907916,1706454642548,-560.74,0.00022191,2]
[312907917,1706454642557,-500.0,0.00022191,2]
[312907919,1706454642566,-500.0,0.00022191,2]
[312907920,1706454642576,-500.0,0.00022191,2]
[312907921,1706454642585,-500.0,0.00022191,2]
[312907923,1706454642594,-500.0,0.00022191,2]
[312907924,1706454642603,-500.0,0.00022191,2]
[312907925,1706454642612,-514.20095115,0.00022191,2]
[312907927,1706454642621,-500.0,0.00022191,2]
[312907928,1706454642630,-500.0,0.00022191,2]
[312907930,1706454642640,-500.0,0.00022191,2]
[312907931,1706454642649,-500.0,0.00022191,2]
[312907932,1706454642658,-500.0,0.00022191,2]
[312907934,1706454642669,-508.16618512,0.00022191,2]
[312907935,1706454642678,-500.0,0.00022191,2]
[312907936,1706454642688,-500.0,0.00022191,2]
[312907937,1706454642697,-2618.59,0.00022191,2]
[312907938,1706454642706,-500.0,0.00022191,2]
[312907939,1706454642715,-500.0,0.00022191,2]
[312907940,1706454642723,-500.0,0.00022191,2]
[312907941,1706454642732,-1905.15,0.00022191,2]
[312907942,1706454642741,-500.0,0.00022191,2]
[312907943,1706454642751,-500.0,0.00022191,2]
[312907944,1706454642759,-500.0,0.00022191,2]
[312907945,1706454642768,-500.0,0.00022191,2]
[312907946,1706454642777,-500.0,0.00022191,2]
[312907947,1706454642786,-500.0,0.00022191,2]
[312907948,1706454642795,-1828.36,0.00022191,2]
[312907949,1706454642803,-500.0,0.00022191,2]
[312907950,1706454642812,-500.0,0.00022191,2]
[312907952,1706454642822,-500.0,0.00022191,2]
[312907953,1706454642831,-546.44432364,0.00022191,2]
[312907955,1706454642840,-500.0,0.00022191,2]
[312907956,1706454642849,-819.23,0.00022191,2]
[312907957,1706454642859,-500.0,0.00022191,2]
[312907959,1706454642868,-1781.92,0.00022191,2]
[312907960,1706454642877,-1024.81,0.00022191,2]
[312907961,1706454642887,-500.0,0.00022191,2]
[312907963,1706454642896,-500.0,0.00022191,2]
[312907964,1706454642905,-500.0,0.00022191,2]
[312907966,1706454642916,-500.0,0.00022191,2]
[312907967,1706454642924,-500.0,0.00022191,2]
[312907968,1706454642933,-3175.93,0.00022191,2]
[312907970,1706454642942,-500.0,0.00022191,2]
[312907974,1706454642952,-500.0,0.00022191,2]
[312907975,1706454643028,-500.0,0.00022191,2]
[312907977,1706454643037,-500.0,0.00022191,2]
[312907978,1706454643046,-875.19,0.00022191,2]
[312907980,1706454643055,-1219.28,0.00022191,2]
[312907981,1706454643064,-2154.11,0.00022191,2]
[312907982,1706454643073,-397.64,0.00022191,2]
[312907984,1706454643082,-5403.66,0.00022191,2]
[312907985,1706454643092,-323.62495647,0.00022191,2]
[312907987,1706454643102,-500.0,0.00022191,2]
[312907988,1706454643113,-460.35165477,0.00022191,2]
[312907989,1706454643122,-1202.07,0.00022191,2]
[312907991,1706454643131,-500.0,0.00022191,2]
[312907992,1706454643140,-932.43,0.00022191,2]
[312907993,1706454643150,-500.0,0.00022191,2]
[312907995,1706454643159,-11221.03,0.00022191,2]
[312907996,1706454643170,-500.0,0.00022191,2]
[312907998,1706454643179,-500.0,0.00022191,2]
[312907999,1706454643188,-500.0,0.00022191,2]
[312908000,1706454643198,-500.0,0.00022191,2]
[312908002,1706454643207,-3837.4,0.00022191,2]
[312908003,1706454643216,-500.0,0.00022191,2]
[312908005,1706454643225,-2383.88,0.00022191,2]
[312908006,1706454643234,-500.0,0.00022191,2]
[312908007,1706454643243,-500.0,0.00022191,2]
[312908009,1706454643252,-500.0,0.00022191,2]
[312908010,1706454643262,-981.65,0.00022191,2]
[312908012,1706454643271,-500.0,0.00022191,2]
[312908013,1706454643280,-503.02,0.00022191,2]
[312908014,1706454643289,-2484.13,0.00022191,2]
[312908016,1706454643298,-500.0,0.00022191,2]
[312908017,1706454643307,-527.14,0.00022191,2]
[312908019,1706454643316,-500.0,0.00022191,2]
[312908020,1706454643325,-25598.93,0.00022191,2]
[312908021,1706454643334,-500.0,0.00022191,2]
[312908023,1706454643343,-500.0,0.00022191,2]
[312908024,1706454643352,-4590.51,0.00022191,2]
[312908026,1706454643361,-217.14462358,0.00022191,2]
[312908027,1706454643370,-500.0,0.00022191,2]
[312908028,1706454643379,-13379.08,0.00022191,2]
[312908030,1706454643388,-500.0,0.00022191,2]
[312908031,1706454643397,-3142.84,0.00022191,2]
[312908033,1706454643407,-1390.76,0.00022191,2]
[312908034,1706454643417,-4034.25,0.00022191,2]
[312908035,1706454643426,-743.92,0.00022191,2]
[312908037,1706454643435,-1060.82,0.00022191,2]
[312908038,1706454643444,-1000.0,0.00022191,2]
[312908039,1706454643453,-507.11,0.00022191,2]
[312908041,1706454643463,-500.0,0.00022191,2]
[312908042,1706454643472,-500.0,0.00022191,2]
[312908045,1706454643481,-517.37750638,0.00022191,2]
[312908046,1706454643490,-43174.06,0.00022191,2]
[312908047,1706454643499,-500.0,0.00022191,2]
[312908049,1706454643509,-500.0,0.00022191,2]
[312908050,1706454643518,-2299.17,0.00022191,2]
[312908052,1706454643527,-656.05,0.00022191,2]
[312908053,1706454643536,-753.94,0.00022191,2]
[312908054,1706454643545,-478.52503022,0.00022191,2]
[312908056,1706454643554,-2107.89,0.00022191,2]
[312908057,1706454643563,-237.80135439,0.00022191,2]
[312908058,1706454643572,-500.0,0.00022191,2]
[312908060,1706454643581,-11192.59,0.00022191,2]
[312908061,1706454643591,-500.0,0.00022191,2]
[312908063,1706454643600,-11676.03,0.00022191,2]
[312908064,1706454643609,-500.0,0.00022191,2]
[312908065,1706454643618,-17321.76,0.00022191,2]
[312908067,1706454643627,-18875.00523896,0.00022191,2]
[312908085,1706454644057,-164.93249697,0.00014521,2]
[312908086,1706454644066,-1896.59757907,0.00022191,2]
[312908096,1706454644261,-500.0,0.00021917,2]
[312908097,1706454644271,-4934.18240087,0.00022191,2]
[312908224,1706454647163,-500.0,0.00021917,2]
[312908225,1706454647174,-500.0,0.00021917,2]
[312908227,1706454647186,-68.90344433,0.00022191,2]
[312910022,1706455152300,200.0,0.00021247,7]
[312910028,1706455452283,200.0,0.00021247,7]
[312910034,1706455753133,280.0,0.00021582,7]
[312910070,1706455831863,-1027.23252462,0.0001732,2]
[312910072,1706455831872,-155.01550155,0.0001732,2]
[312910074,1706455831881,-155.01550155,0.00017321,2]
[312910076,1706455831891,-620.0257606,0.00017321,2]
[312910078,1706455831900,-155.01550155,0.00017322,2]
[312910080,1706455831909,-40.32713649,0.00017322,3]
[312910082,1706455831920,-114.68836506,0.00017322,3]
[312910085,1706455831929,-192.46020214,0.00017323,2]
[312910087,1706455831938,-63.77433276,0.00017422,2]
[312910089,1706455831950,-624.91173629,0.00017422,2]
[312910090,1706455831959,-2597.02125293,0.00017423,2]
[312910130,1706455838504,-904.55199849,0.0001732,2]
[312910132,1706455838514,-5814.22921197,0.00017423,2]
[312910135,1706455838536,-989.30131082,0.00017423,2]
[312910257,1706455841038,-973.16882197,0.00017423,2]
[312910258,1706455841097,-1135.71797863,0.00017423,2]
[312910259,1706455841108,-9863.77655197,0.00017423,2]
[312910272,1706455843621,-600.33559896,0.00017423,2]
[312910273,1706455843635,-2438.89284968,0.00017423,2]
[312910293,1706456096101,155.01550155,0.00016329,3]
[312910295,1706456264943,151.01208097,0.0002813,30]
[312910297,1706456355204,200.0,0.00021753,7]
[312910298,1706456356385,348.0,0.00021753,7]
[312910332,1706456589444,1224.05,0.00029,30]
[312910333,1706456657026,200.0,0.00022116,7]
[312910334,1706456657785,200.0,0.00022116,7]
[312910335,1706456658575,368.0,0.00022116,7]
[312910416,1706457032232,-155.01085076,0.00010345,2]
[312910417,1706457032242,-155.01085076,0.00010345,2]
[312910418,1706457032251,-494.81287237,0.00010346,2]
[312910419,1706457032260,-1027.23252462,0.00010346,2]
[312910420,1706457032270,-18921.17730606,0.00010346,2]
[312910421,1706457032279,-500.0,0.00010347,2]
[312910422,1706457032288,-1742.71377974,0.00010347,2]
[312910423,1706457032297,-20919.92879055,0.00010347,2]
[312910424,1706457032306,-81268.82977941,0.00010347,2]
[312910425,1706457032315,-37000.01230553,0.00010347,2]
[312910426,1706457032323,-199.40706309,0.00010348,2]
[312910427,1706457032332,-527.20617205,0.00010348,2]
[312910428,1706457032342,-262.62109468,0.00010348,2]
[312910429,1706457032352,-166.8449914,0.00010348,2]
[312910430,1706457032361,-171.10726963,0.00010348,2]
[312910431,1706457032370,-302.2469024,0.00010348,2]
[312910432,1706457032379,-6933.1761501,0.00010348,2]
[312910475,1706457038179,-620.0257606,0.00010344,2]
[312910476,1706457038189,-1789.55798964,0.00010347,2]
[312910477,1706457038200,-205.96516278,0.00010347,2]
[312910478,1706457038209,-155.01085076,0.00010347,2]
[312910479,1706457038219,-13959.25444917,0.00010348,2]
[312910480,1706457038231,-155.01085076,0.00010348,2]
[312910481,1706457038241,-155.01085076,0.00010349,2]
[312910482,1706457038251,-904.55199849,0.00010349,2]
[312910483,1706457038261,-2817.80173688,0.00010349,2]
[312910484,1706457038271,-295.19469564,0.00010349,2]
[312910485,1706457038280,-155.01085076,0.00010349,2]
[312910486,1706457038290,-1294.9059591,0.0001035,2]
[312910487,1706457038299,-155.01085076,0.0001035,2]
[312910488,1706457038308,-588.93888333,0.00010351,2]
[312910489,1706457038317,-213.63828933,0.00010351,2]
[312910490,1706457038326,-978.95259375,0.00010351,2]
[312910491,1706457038336,-2821.32946472,0.00010351,2]
[312910492,1706457038346,-446.9117951,0.00010352,2]
[312910493,1706457038355,-155.0982102,0.00010447,2]
[312910494,1706457038364,-161.19857963,0.00010447,2]
[312910495,1706457038374,-19884.40674015,0.00010447,2]
[312910496,1706457038384,-19720.32843806,0.00010447,2]
[312910497,1706457038393,-155.01085076,0.00010448,2]
[312910498,1706457038402,-1243.61210586,0.00010448,2]
[312910499,1706457038412,-155.01085076,0.00010449,2]
[312910500,1706457038421,-5070.0407543,0.00010456,2]
[312910501,1706457038430,-1993.09130446,0.00010707,2]
[312910502,1706457038439,-680.7197232,0.00010712,2]
[312910503,1706457038448,-200.0,0.00011496,2]
[312910504,1706457038458,-785.6606918,0.00011725,2]
[312910505,1706457038468,-446.91179508,0.00011947,2]
[312910506,1706457038479,-280.0,0.00012646,2]
[312910507,1706457038488,-9039.40603719,0.0001273,2]
[312910508,1706457038496,-24900.0,0.00012735,2]
[312910509,1706457038506,-446.91179508,0.00013542,2]
[312910510,1706457038515,-155.02015262,0.0001369,2]
[312910511,1706457038524,-607.575319,0.00013699,2]
[312910512,1706457038533,-2300.0,0.00013699,2]
[312910513,1706457038543,-2002.61413331,0.00013739,2]
[312910514,1706457038552,-2105.7958969,0.00013831,2]
[312910515,1706457038561,-2076.27654373,0.00013831,2]
[312910516,1706457038570,-471.13604267,0.00013831,2]
[312910517,1706457038580,-300.0,0.00013833,2]
[312910518,1706457038589,-300.0,0.00013833,2]
[312910519,1706457038598,-300.0,0.00013833,2]
[312910520,1706457038607,-300.0,0.00013833,2]
[312910521,1706457038616,-300.0,0.00013833,2]
[312910522,1706457038626,-359.86925487,0.00013833,2]
[312910523,1706457038635,-391.0,0.0001391,2]
[312910524,1706457038644,-262.12037239,0.00014841,2]
[312910525,1706457038653,-688.68606905,0.00015,2]
[312910526,1706457038663,-247.50289438,0.00015,2]
[312910527,1706457038672,-446.91179508,0.00015136,2]
[312910528,1706457038681,-200.0,0.00015301,2]
[312910529,1706457038690,-348.0,0.00015301,2]
[312910530,1706457038700,-495.05930133,0.00015835,2]
[312910531,1706457038709,-4105.76443808,0.00016164,2]
[312910532,1706457038719,-16804.66517352,0.000163,2]
[312910533,1706457038729,-155.14514716,0.00016327,2]
[312910534,1706457038740,-155.26019958,0.00016327,2]
[312910535,1706457038749,-608.61746145,0.00016327,2]
[312910536,1706457038758,-1650.91924153,0.00016327,2]
[312910537,1706457038768,-155.05425932,0.00016327,2]
[312910538,1706457038777,-155.24281144,0.00016327,2]
[312910539,1706457038786,-166.53940446,0.00016327,2]
[312910540,1706457038796,-617.65278222,0.00016327,2]
[312910541,1706457038805,-584.41678114,0.00016327,2]
[312910542,1706457038814,-3846.91233817,0.00016327,2]
[312910543,1706457038822,-171.95327391,0.00016327,2]
[312910544,1706457038831,-156.12657933,0.00016327,2]
[312910545,1706457038841,-1084.36447655,0.00016327,2]
[312910546,1706457038851,-155.49597422,0.00016327,2]
[312910547,1706457038861,-175.82941029,0.00016327,2]
[312910548,1706457038870,-179.40761383,0.00016327,2]
[312910549,1706457038879,-1701.22189287,0.00016327,2]
[312910550,1706457038891,-524.26984222,0.00016327,2]
[312910551,1706457038900,-155.23562869,0.00016327,2]
[312910552,1706457038910,-332.55741511,0.00016327,2]
[312910553,1706457038919,-879.16574352,0.00016327,2]
[312910554,1706457038929,-244.93862789,0.00016327,2]
[312910555,1706457038938,-242.39341789,0.00016327,2]
[312910556,1706457038947,-4102.47868551,0.00016327,2]
[312910557,1706457038956,-155.02116883,0.00016327,2]
[312910558,1706457038965,-7966.81883748,0.00016327,2]
[312910559,1706457038974,-156.61472977,0.00016327,2]
[312910560,1706457038985,-303.44835747,0.00016327,2]
[312910561,1706457038994,-155.17453603,0.00016327,2]
[312910562,1706457039014,-261.32079795,0.00016327,2]
[312910563,1706457039024,-2040.63936826,0.00016328,2]
[312910564,1706457039034,-243739.65576437,0.00016329,2]
[312910565,1706457039043,-446.91179508,0.00016731,2]
[312910566,1706457039053,-200.0,0.00016831,2]
[312910567,1706457039062,-200.0,0.00016831,2]
[312910568,1706457039072,-368.0,0.00016831,2]
[312910569,1706457039081,-154.9690062,0.00017213,2]
[312910570,1706457039091,-185.5685607,0.00017323,2]
[312910571,1706457039100,-176.91334476,0.00017421,2]
[312910572,1706457039110,-554.88556256,0.00017421,2]
[312910573,1706457039119,-155.17316681,0.00017421,2]
[312910574,1706457039129,-155.06328132,0.00017421,2]
[312910575,1706457039139,-155.16797242,0.00017421,2]
[312910576,1706457039149,-343.25713726,0.00017423,2]
[312910577,1706457039158,-620.96495057,0.00017423,2]
[312910578,1706457039168,-684.47840013,0.00017423,2]
[312910579,1706457039178,-200.0,0.00018514,2]
[312910580,1706457039187,-200.0,0.00018514,2]
[312910581,1706457039197,-200.0,0.00018514,2]
[312910582,1706457039207,-200.0,0.00018514,2]
[312910583,1706457039216,-275.0,0.00018514,2]
[312910584,1706457039225,-1367.98900414,0.00019,2]
[312910585,1706457039235,-166.083631,0.00019178,2]
[312910586,1706457039245,-191.036015,0.000197,2]
[312910587,1706457039254,-164.355245,0.00019786,2]
[312910588,1706457039264,-679.47851073,0.0002,2]
[312910589,1706457039273,-156.75801892,0.0002,2]
[312910590,1706457039283,-244.23818961,0.0002,2]
[312910591,1706457039292,-265.25547221,0.0002,2]
[312910592,1706457039301,-1199.39136189,0.0002,2]
[312910593,1706457039311,-180.04943139,0.0002,2]
[312910594,1706457039320,-200.0,0.00020366,2]
[312910595,1706457039330,-200.0,0.00020366,2]
[312910596,1706457039339,-283.0,0.00020366,2]
[312910597,1706457039349,-607.575319,0.00020548,2]
[312910598,1706457039358,-151.0,0.00020901,2]
[312910599,1706457039368,-243.19997644,0.00020998,2]
[312910600,1706457039377,-595.45090393,0.00020999,2]
[312910601,1706457039387,-681.16936443,0.00021293,2]
[312910602,1706457039510,-156.2311328,0.0002137,2]
[312910603,1706457039520,-155.18568413,0.00021708,2]
[312910604,1706457039529,-500.0,0.00021709,2]
[312910605,1706457039538,-500.0,0.00021709,2]
[312910606,1706457039548,-500.0,0.00021709,2]
[312910607,1706457039557,-500.0,0.00021709,2]
[312910608,1706457039566,-500.0,0.00021709,2]
[312910609,1706457039575,-500.0,0.00021709,2]
[312910610,1706457039584,-500.0,0.00021709,2]
[312910611,1706457039593,-337.70440343,0.00021709,2]
[312910612,1706457039602,-500.0,0.00021709,2]
[312910614,1706457039611,-500.0,0.00021709,2]
[312910616,1706457039621,-500.0,0.00021709,2]
[312910618,1706457039630,-647.02207258,0.00021709,2]
[312910619,1706457039639,-500.0,0.00021709,2]
[312910620,1706457039648,-500.0,0.00021709,2]
[312910621,1706457039657,-156.35796755,0.00021709,2]
[312910622,1706457039666,-500.0,0.00021709,2]
[312910623,1706457039674,-425.31454102,0.00021709,2]
[312910624,1706457039684,-500.0,0.00021709,2]
[312910625,1706457039693,-634.03071431,0.00021709,2]
[312910626,1706457039702,-500.0,0.00021709,2]
[312910627,1706457039711,-500.0,0.00021709,2]
[312910628,1706457039720,-500.0,0.00021709,2]
[312910629,1706457039729,-500.0,0.00021709,2]
[312910630,1706457039739,-500.0,0.00021709,2]
[312910631,1706457039748,-500.0,0.00021709,2]
[312910632,1706457039757,-500.0,0.00021709,2]
[312910633,1706457039766,-500.0,0.00021709,2]
[312910634,1706457039776,-500.0,0.00021709,2]
[312910635,1706457039784,-500.0,0.00021709,2]
[312910636,1706457039793,-500.0,0.00021709,2]
[312910637,1706457039803,-500.0,0.00021709,2]
[312910638,1706457039812,-500.0,0.00021709,2]
[312910639,1706457039821,-500.0,0.00021709,2]
[312910640,1706457039830,-450.11338084,0.00021709,2]
[312910641,1706457039841,-500.0,0.00021709,2]
[312910642,1706457039853,-500.0,0.00021709,2]
[312910643,1706457039862,-500.0,0.00021709,2]
[312910644,1706457039871,-164.27609953,0.00021709,2]
[312910645,1706457039880,-500.0,0.00021709,2]
[312910646,1706457039889,-447.53970492,0.00021709,2]
[312910647,1706457039899,-500.0,0.00021709,2]
[312910648,1706457039908,-500.0,0.00021709,2]
[312910649,1706457039917,-500.0,0.00021709,2]
[312910650,1706457039928,-500.0,0.00021709,2]
[312910651,1706457039937,-500.0,0.00021709,2]
[312910652,1706457039946,-500.0,0.00021709,2]
[312910653,1706457039955,-68027.9095828,0.0002171,2]
[312910654,1706457039965,-151.0,0.00021803,2]
[312910655,1706457039974,-78389.68051343,0.00021811,2]
[312910656,1706457039983,-5000.0,0.00021811,2]
[312910657,1706457039992,-1065.87295513,0.00021811,2]
[312910658,1706457040001,-5000.0,0.00021811,2]
[312910659,1706457040010,-35339.70337859,0.00021811,2]
[312910660,1706457040019,-8974.73897417,0.00021811,2]
[312910661,1706457040028,-5000.0,0.00021811,2]
[312910662,1706457040037,-5000.0,0.00021811,2]